bitfinex/quotes_ETHUSD_20241106
["timestamp","ask_amount","ask_price","bid_price","bid_amount"]
[1730856269971,0.0242473,2483.2,2483.0,4.02725]
[1730856270174,0.0242473,2483.2,2483.1,4.02722]
[1730856271214,0.0242473,2483.2,2482.9,4.02746]
[1730856271418,0.0242473,2483.2,2483.0,4.0273]
[1730856271625,0.0242473,2483.2,2483.1,4.02722]
[1730856272113,0.0242473,2483.2,2483.1,4.80872]
[1730856273016,0.0618374,2484.4,2483.1,3.86202387]
[1730856273227,0.0618374,2484.4,2484.1,4.02546]
[1730856273512,0.0618374,2484.4,2484.3,4.02527]
[1730856274380,0.0618374,2484.4,2484.2,4.02534]
[1730856274584,0.0618374,2484.4,2484.3,4.02527]
[1730856274882,0.0618374,2484.4,2484.2,4.02534]
[1730856275100,0.0618374,2484.4,2484.3,4.02527]
[1730856275493,0.0618374,2484.4,2484.2,4.02534]
[1730856275698,0.0618374,2484.4,2484.3,4.02527]
[1730856276122,0.0618374,2484.4,2484.3,4.10576263]
[1730856276296,0.0618374,2484.4,2484.2,4.02534]
[1730856276490,0.0618374,2484.4,2484.3,4.02527]
[1730856276802,0.0618374,2484.4,2484.2,4.02534]
[1730856277207,0.0618374,2484.4,2484.3,4.02527]
[1730856277427,0.0618374,2484.4,2484.2,8.05069]
[1730856277792,0.0618374,2484.4,2484.2,4.02534]
[1730856278126,0.0618374,2484.4,2483.9,4.80735]
[1730856278326,0.0618374,2484.4,2483.9,4.80733]
[1730856278546,0.0618374,2484.4,2484.2,4.0253]
[1730856278862,0.0618374,2484.4,2484.1,8.051]
[1730856279236,0.0618374,2484.4,2484.1,4.0255]
[1730856279565,0.0618374,2484.4,2484.0,4.02574]
[1730856280720,4.02606,2483.9,2483.2,4.0269]
[1730856280926,0.7677,2484.3,2483.3,0.08052594]
[1730856281122,4.02574,2484.1,2483.3,4.02681]
[1730856281325,4.02544,2484.2,2483.1,4.80861]
[1730856281537,8.05199,2483.9,2483.3,4.0268]
[1730856281834,4.02576,2484.0,2483.4,4.02662]
[1730856282504,4.02599,2483.9,2483.4,4.02662]
[1730856282773,4.02599,2483.9,2483.3,4.0268]
[1730856282976,4.02599,2483.9,2483.1,4.80871]
[1730856283176,4.02625,2483.7,2483.2,4.02696]
[1730856283377,4.02625,2483.7,2483.1,0.7815]
[1730856283676,4.02684,2483.4,2482.9,4.02743]
[1730856283839,4.027,2483.3,2482.7,4.02779]
[1730856284040,4.02641,2483.6,2483.1,4.02706]
[1730856284274,4.02666,2483.5,2483.0,4.02729]
[1730856284982,4.02641,2483.6,2482.9,4.02743]
[1730856285194,4.02625,2483.7,2483.0,4.02738]
[1730856285476,3.0,2484.1,2483.5,8.04297]
[1730856285477,4.02562,2484.1,2483.5,8.04297]
[1730856285680,4.02562,2484.1,2483.5,4.01648]
[1730856285877,4.02562,2484.1,2483.6,4.02638]
[1730856286187,4.02538,2484.3,2483.7,4.106663]
[1730856286478,4.02548,2484.2,2483.7,4.02617]
[1730856286640,4.02563,2484.1,2483.7,4.02617]
[1730856286841,4.02576,2484.0,2483.4,4.02672]
[1730856287051,4.02576,2484.0,2483.3,4.02686]
[1730856287442,4.02576,2484.0,2483.4,4.02661]
[1730856287846,4.02593,2483.9,2483.4,4.02661]
[1730856288275,4.02576,2484.0,2483.4,4.02661]
[1730856288484,4.02595,2483.9,2483.4,4.02661]
[1730856288844,4.02537,2484.3,2483.5,0.08052536]
[1730856289046,4.02537,2484.3,2483.7,4.02612]
[1730856289047,4.02545,2484.2,2483.7,4.02612]
[1730856289276,0.8142374,2484.4,2483.8,4.02607]
[1730856289450,4.0253,2484.3,2483.8,8.05208]
[1730856289651,8.05071,2484.3,2483.8,4.02601]
[1730856289869,4.0253,2484.3,2483.8,4.02601]
[1730856290181,4.02545,2484.2,2483.6,4.02627]
[1730856290480,4.8394374,2484.4,2483.9,4.02584]
[1730856290686,4.02536,2484.3,2483.7,8.05224]
[1730856290845,4.02546,2484.2,2483.7,4.02611]
[1730856291781,5.72590814,2484.4,2483.3,4.02686]
[1730856291942,4.8394474,2484.4,2483.7,4.02612]
[1730856292145,8.05074,2484.3,2483.8,4.02603]
[1730856292863,4.02568,2484.1,2483.6,4.02638]
[1730856293687,4.02618,2483.8,2483.2,8.80473]
[1730856293847,4.02618,2483.8,2483.1,4.02721]
[1730856294192,4.77865,2483.7,2483.2,4.02696]
[1730856294371,4.77865,2483.7,2483.2,8.05392]
[1730856294680,4.02618,2483.8,2483.2,4.02696]
[1730856294883,4.02529,2484.3,2483.6,4.02637]
[1730856295088,0.8142374,2484.4,2484.0,4.02569]
[1730856295257,0.8142374,2484.4,2484.2,4.02542]
[1730856295258,0.0618374,2484.4,2484.2,4.02542]
[1730856295580,0.0618374,2484.4,2484.3,4.02527]
[1730856296345,0.0618374,2484.4,2484.3,4.1057591]
[1730856297365,0.0618374,2484.4,2484.3,4.02527]
[1730856297568,0.0618374,2484.4,2484.3,4.76337294]
[1730856297863,0.0618374,2485.7,2485.4,4.02337]
[1730856298068,0.0618374,2485.7,2485.6,4.02317]
[1730856300091,0.0618374,2485.7,2485.6,4.80947]
[1730856300294,0.0618374,2486.9,2485.6,4.80947]
[1730856300295,0.0618374,2486.9,2485.9,7.02268]
[1730856300632,0.0618374,2486.9,2486.8,4.02123]
[1730856300931,0.0618374,2486.9,2486.8,4.10163891]
[1730856301226,0.0618374,2486.9,2486.8,4.10163198]
[1730856301374,0.0618374,2486.9,2486.8,7.80753]
[1730856301571,0.0618374,2486.9,2486.8,8.35753]
[1730856301775,4.8496274,2488.2,2487.6,4.01982]
[1730856301999,0.8306374,2488.2,2487.8,4.01958]
[1730856302312,0.8306374,2488.2,2487.6,4.01993]
[1730856302615,4.01925,2488.1,2487.5,4.01999]
[1730856302772,4.0193,2488.0,2487.3,4.02033]
[1730856302970,0.88688574,2488.1,2487.4,4.02016]
[1730856303185,4.01949,2487.9,2487.2,0.7863]
[1730856303396,0.7688,2487.5,2486.9,4.02105]
[1730856303729,0.7688,2487.5,2486.7,4.02138]
[1730856303885,4.02035,2487.4,2486.7,4.02138]
[1730856304478,4.02035,2487.4,2486.8,4.02117]
[1730856305014,4.02035,2487.4,2486.6,4.02141]
[1730856305216,4.02035,2487.4,2486.7,4.0213]
[1730856305509,4.02044,2487.3,2486.6,4.02141]
[1730856306216,8.041,2487.3,2486.6,4.02141]
[1730856306370,4.02028,2487.4,2486.7,4.02126]
[1730856306576,4.78899,2487.5,2486.8,4.02109]
[1730856306879,5.669872,2487.5,2486.7,4.10167463]
[1730856307198,1.649682,2487.5,2486.2,0.10296485]
[1730856307400,0.7688,2486.8,2486.0,4.02242]
[1730856307580,4.02164,2486.6,2486.0,4.02242]
[1730856308029,0.7688,2486.8,2485.8,4.80905]
[1730856308314,4.02268,2485.9,2485.2,4.02367]
[1730856308488,4.02289,2485.8,2485.2,4.02367]
[1730856308811,4.02301,2485.7,2485.0,4.02403]
[1730856309128,3.0,2486.5,2485.5,4.02333]
[1730856309129,4.02212,2486.3,2485.5,4.02333]
[1730856309412,4.02255,2486.0,2485.4,4.02339]
[1730856309612,4.02288,2485.8,2485.3,4.02358]
[1730856309910,4.02329,2485.6,2485.0,4.02406]
[1730856310114,4.02236,2486.1,2485.3,4.02362]
[1730856310319,4.02272,2485.9,2485.4,0.08046085]
[1730856310477,4.02327,2485.6,2484.7,0.7863]
[1730856310677,4.79207,2485.6,2485.0,4.02413]
[1730856310913,0.7688,2485.6,2484.8,4.02446]
[1730856311078,4.02379,2485.3,2484.6,8.04937]
[1730856311276,4.02379,2485.3,2484.6,4.02467]
[1730856311625,4.02418,2485.0,2484.4,4.02498]
[1730856311773,0.402379,2485.3,2484.6,4.02479]
[1730856311774,4.02392,2485.2,2484.6,4.02479]
[1730856311991,4.02448,2484.8,2484.2,4.02533]
[1730856312291,4.02471,2484.7,2484.2,4.02533]
[1730856312529,4.02448,2484.8,2484.2,8.05066]
[1730856312687,4.02448,2484.8,2484.2,4.02533]
[1730856313094,4.02447,2484.8,2484.2,4.02533]
[1730856313502,0.7688,2485.2,2484.3,4.02515]
[1730856313711,4.0244,2484.9,2484.3,4.02515]
[1730856314132,8.0488,2484.9,2484.3,4.02515]
[1730856314628,4.02457,2484.8,2484.1,8.05096]
[1730856314832,4.02457,2484.8,2484.2,4.02542]
[1730856315308,4.02457,2484.8,2484.1,4.02547]
[1730856315309,4.0244,2484.9,2484.3,4.10574581]
[1730856315669,4.02431,2484.9,2484.3,4.10567581]
[1730856316125,8.0487,2484.9,2484.3,4.10567581]
[1730856316334,0.804838,2484.9,2483.7,0.7647]
[1730856316635,4.85097,2484.8,2484.2,4.02542]
[1730856316797,8.87558,2484.8,2484.2,4.02542]
[1730856316994,10.1436218,2484.8,2484.2,4.02542]
[1730856317191,4.02463,2484.7,2484.2,4.02542]
[1730856317535,2.0944418,2484.8,2484.2,4.02535]
[1730856317692,4.02465,2484.7,2484.2,4.02535]
[1730856318337,4.85099,2484.8,2484.2,4.02534]
[1730856318643,4.85096,2484.8,2484.2,4.02534]
[1730856319130,4.85096,2484.8,2484.0,8.05128]
[1730856319341,4.02472,2484.7,2484.0,8.05128]
[1730856319550,4.02506,2484.5,2483.8,4.02598]
[1730856319863,4.02514,2484.4,2483.7,4.02614]
[1730856320003,8.05041,2484.4,2483.7,4.02614]
[1730856320351,4.85186,2484.2,2483.6,4.02631]
[1730856320836,0.8264,2484.6,2483.7,0.08051679]
[1730856321044,0.8264,2484.6,2484.1,8.05101]
[1730856321248,0.8264,2484.6,2484.2,4.02544]
[1730856322009,4.85121,2484.6,2483.8,4.02604]
[1730856322206,4.02504,2484.5,2483.8,8.05204]
[1730856322462,5.336331,2484.6,2483.4,4.02664]
[1730856322463,9.29659188,2484.6,2483.4,4.02664]
[1730856322609,4.02586,2484.0,2483.4,4.02664]
[1730856323032,4.02586,2484.0,2483.5,4.02654]
[1730856323446,4.02586,2484.0,2483.4,4.02664]
[1730856323670,4.02616,2483.8,2483.2,4.0888074]
[1730856323815,8.05239,2483.8,2483.2,4.0888074]
[1730856324134,4.02616,2483.8,2483.2,8.1157774]
[1730856324345,4.02616,2483.8,2483.2,0.0618374]
[1730856324508,4.02635,2483.7,2483.2,0.0618374]
[1730856324715,4.914261,2483.7,2483.2,0.0618374]
[1730856324951,8.940601,2483.7,2483.2,0.0618374]
[1730856325118,8.05269,2483.7,2483.2,0.0618374]
[1730856325453,4.02642,2483.6,2483.2,0.0618374]
[1730856325948,4.0266,2483.5,2483.2,0.0618374]
[1730856326162,0.8264,2483.9,2483.2,0.0618374]
[1730856326311,4.02689,2483.4,2483.2,0.0618374]
[1730856326515,4.85329,2483.3,2483.2,0.0618374]
[1730856327360,4.02766,2482.9,2482.2,4.02867]
[1730856327529,8.05532,2482.9,2482.3,4.0285]
[1730856327737,4.02766,2482.9,2482.3,4.0285]
[1730856327930,15.82836088,2483.3,2482.3,0.805733]
[1730856327931,0.8264,2483.3,2482.3,0.805733]
[1730856328132,0.7676,2483.6,2483.0,4.02723]
[1730856328330,0.7676,2483.6,2482.9,4.02746]
[1730856328331,4.79412,2483.6,2482.9,4.02743]
[1730856328557,0.7676,2483.6,2483.0,4.02725]
[1730856328716,0.7676,2483.6,2483.0,4.02738]
[1730856329056,0.7676,2483.6,2483.1,4.02707]
[1730856329271,0.7676,2483.9,2483.4,4.02672]
[1730856329576,4.0256,2484.1,2483.5,4.02649]
[1730856329919,8.05133,2484.1,2483.4,8.05337]
[1730856330119,0.7676,2484.2,2483.5,4.02647]
[1730856330366,0.7676,2484.2,2483.3,4.7808]
[1730856330367,4.02578,2484.0,2483.3,4.7808]
[1730856330570,4.02578,2484.0,2483.2,4.02705]
[1730856330725,4.02578,2484.0,2483.1,0.41076112]
[1730856330928,5.75858196,2484.2,2483.4,4.02664]
[1730856331244,4.0256,2484.1,2483.4,4.02664]
[1730856331855,4.02585,2484.0,2483.4,4.02664]
[1730856332062,4.0256,2484.1,2483.4,4.02659]
[1730856332356,0.7676,2484.5,2483.7,4.02625]
[1730856332567,4.02447,2484.8,2484.1,4.0255]
[1730856332568,5.62806958,2484.8,2484.1,4.0255]
[1730856332769,0.7676,2484.8,2484.1,4.0255]
[1730856332919,4.79219,2484.8,2484.1,8.051]
[1730856333120,4.79219,2484.8,2484.2,4.02542]
[1730856333448,0.7676,2484.8,2484.2,4.02542]
[1730856333651,0.7676,2484.8,2483.7,4.02618]
[1730856333652,4.02504,2484.5,2483.9,4.02581]
[1730856333955,4.02463,2484.7,2483.7,4.02616]
[1730856334181,0.7676,2484.1,2483.5,4.02657]
[1730856334477,4.026,2483.9,2483.3,4.02674]
[1730856334665,4.02576,2484.0,2483.1,4.02711]
[1730856334666,4.0261,2483.8,2483.2,4.02699]
[1730856334837,4.0261,2483.8,2483.0,4.02738]
[1730856334838,4.02642,2483.6,2483.0,4.02738]
[1730856335035,4.02585,2484.0,2482.9,4.02754]
[1730856335370,4.02628,2483.7,2483.0,4.02725]
[1730856335536,8.05265,2483.7,2483.0,4.02725]
[1730856335733,4.02592,2483.9,2482.9,4.02751]
[1730856336058,0.01,2484.0,2482.4,4.0646028]
[1730856336059,0.7676,2483.4,2482.5,4.02807]
[1730856336578,4.02731,2483.1,2482.5,4.02807]
[1730856336731,0.7676,2483.4,2482.4,35.0362528]
[1730856336937,4.02755,2482.9,2482.4,0.0362528]
[1730856337164,4.02733,2483.1,2482.5,4.02818]
[1730856337363,4.02742,2483.0,2482.5,4.02818]
[1730856337573,4.02742,2483.0,2482.4,4.0646028]
[1730856337774,4.02706,2483.2,2482.5,4.02811]
[1730856337959,4.02706,2483.2,2482.6,4.02792]
[1730856338135,5.209222,2483.2,2482.6,4.02792]
[1730856338340,4.02723,2483.1,2482.4,4.0646028]
[1730856338540,4.02723,2483.1,2482.5,4.02813]
[1730856339044,4.02742,2483.0,2482.4,0.0362528]
[1730856339246,4.0278,2482.8,2482.4,0.0362528]
[1730856339538,8.861172,2482.8,2482.4,0.0362528]
[1730856339768,0.805522,2482.8,2482.4,0.0362528]
[1730856339969,4.02715,2483.2,2482.5,4.02804]
[1730856340155,0.7676,2483.4,2482.7,4.02787]
[1730856340360,0.7676,2483.8,2482.8,0.83454908]
[1730856340559,0.83592958,2484.0,2483.5,4.02657]
[1730856340776,4.02573,2484.1,2483.5,4.02644]
[1730856340983,4.02573,2484.1,2483.6,39.0264]
[1730856341284,4.02573,2484.1,2483.1,4.02719]
[1730856341285,0.7676,2484.2,2483.7,4.10675818]
[1730856341596,0.7676,2484.2,2483.9,4.02592]
[1730856341737,4.79253,2484.6,2483.9,4.02583]
[1730856342667,4.0252,2484.4,2483.8,4.02608]
[1730856342881,4.79246,2484.6,2483.9,4.02588]
[1730856343224,4.79246,2484.6,2483.8,4.02608]
[1730856343225,4.79246,2484.6,2484.0,4.02575]
[1730856343403,1.649304,2484.6,2483.6,4.02638]
[1730856343558,4.02495,2484.5,2483.9,4.02576]
[1730856344599,4.79243,2484.6,2483.8,4.02597]
[1730856344808,4.02512,2484.4,2483.8,4.02597]
[1730856345103,0.7676,2484.6,2483.6,4.02633]
[1730856345308,4.02558,2484.2,2483.6,4.02633]
[1730856345505,4.02558,2484.2,2483.5,4.02656]
[1730856345506,4.02571,2484.1,2483.5,4.02656]
[1730856346173,4.02579,2484.0,2483.4,8.05325]
[1730856346389,0.7507,2483.9,2483.1,0.7734]
[1730856346561,0.7507,2483.9,2483.3,4.02679]
[1730856346763,4.77673,2483.9,2483.3,4.02679]
[1730856347510,8.80278,2483.9,2483.3,4.02679]
[1730856347687,4.77673,2483.9,2483.3,4.02679]
[1730856347871,1.228373,2483.9,2483.0,4.02725]
[1730856348072,4.02669,2483.5,2482.9,4.02753]
[1730856348375,4.02681,2483.4,2482.8,4.02761]
[1730856348580,4.02681,2483.4,2482.8,8.05519]
[1730856348983,4.02681,2483.4,2482.9,4.02754]
[1730856349190,4.02669,2483.5,2483.0,4.02735]
[1730856349402,4.02632,2483.7,2483.1,4.02713]
[1730856349613,4.77674,2483.9,2483.1,0.08053868]
[1730856349790,4.77674,2483.9,2483.1,4.02711]
[1730856349991,4.02608,2483.8,2483.3,4.02688]
[1730856350822,4.02608,2483.8,2483.1,4.02711]
[1730856350823,4.02644,2483.6,2483.1,4.02711]
[1730856351115,4.02627,2483.7,2483.2,4.02699]
[1730856351313,4.02625,2483.7,2483.2,4.02699]
[1730856351721,4.02625,2483.7,2483.1,4.02711]
[1730856352027,4.02641,2483.6,2483.1,8.05421]
[1730856352907,4.02659,2483.5,2483.1,4.0271]
[1730856353275,8.05237,2483.8,2483.2,4.02694]
[1730856353382,4.02643,2483.6,2483.1,4.0271]
[1730856353819,4.02619,2483.8,2483.3,4.02685]
[1730856354020,4.02589,2484.0,2483.6,4.02639]
[1730856354221,4.86145958,2484.2,2483.7,4.02625]
[1730856354422,0.7507,2484.3,2483.7,4.02621]
[1730856354719,1.8398034,2484.3,2482.6,4.02796]
[1730856354881,4.02636,2483.7,2483.1,4.02711]
[1730856355087,1.59662958,2484.3,2482.9,4.02752]
[1730856355088,4.02596,2483.9,2482.9,4.02752]
[1730856355286,4.02682,2483.4,2482.9,4.02752]
[1730856355515,4.0265,2483.6,2483.0,4.02723]
[1730856355982,4.02686,2483.4,2482.9,4.02752]
[1730856356183,4.02686,2483.4,2482.9,8.05498]
[1730856356826,0.7507,2483.3,2482.7,4.02775]
[1730856357240,4.77768,2483.3,2482.7,4.02775]
[1730856357388,4.02733,2483.1,2482.5,4.02807]
[1730856357593,4.02733,2483.1,2482.6,4.02802]
[1730856358046,8.05468,2483.1,2482.5,4.02807]
[1730856358348,8.05468,2483.1,2482.4,0.0362528]
[1730856358349,0.880538,2483.1,2482.4,4.0645128]
[1730856358522,4.02763,2482.9,2482.4,4.0645128]
[1730856358829,4.02774,2482.8,2482.4,0.0362528]
[1730856359193,4.02804,2482.6,2482.4,0.0362528]
[1730856359399,4.02819,2482.5,2482.4,0.0362528]
[1730856359617,4.86411958,2482.5,2482.4,0.0362528]
[1730856359794,4.02819,2482.5,2482.4,0.0362528]
[1730856360194,4.913753,2482.5,2482.4,0.0362528]
[1730856360395,5.463753,2482.5,2482.4,0.0362528]
[1730856360620,8.36408572,2482.5,2482.4,0.0362528]
[1730856361002,6.68055152,2482.5,2482.4,0.0362528]
[1730856361212,8.36408572,2482.5,2482.4,0.0362528]
[1730856361456,0.84139793,2482.5,2482.4,0.0362528]
[1730856361730,0.84139793,2482.8,2482.4,0.0362528]
[1730856362043,4.86893793,2482.9,2482.4,0.0362528]
[1730856362335,0.84139793,2483.0,2482.4,0.0362528]
[1730856362520,0.84139793,2483.4,2483.1,4.02719]
[1730856362731,1.64079793,2483.5,2482.7,0.08054439]
[1730856363032,1.6835342,2483.8,2483.0,8.05458]
[1730856363033,4.02643,2483.6,2483.0,8.05458]
[1730856363271,0.96934079,2483.6,2482.6,0.8048]
[1730856363539,4.02781,2482.8,2482.4,0.0362528]
[1730856364041,4.86885793,2483.0,2482.4,0.0362528]
[1730856364042,4.86885793,2483.0,2482.4,4.0645928]
[1730856364556,4.02783,2482.8,2482.4,0.0362528]
[1730856364747,4.86909793,2482.9,2482.4,0.0362528]
[1730856364894,0.84139793,2483.0,2482.4,0.0362528]
[1730856365092,4.86869793,2483.1,2482.6,4.02792]
[1730856365337,1.64079793,2483.2,2482.7,4.02786]
[1730856365554,0.7994,2483.2,2482.4,0.0362528]
[1730856365750,4.26215735,2483.4,2482.8,4.02761]
[1730856365751,0.84139793,2483.4,2482.8,4.02761]
[1730856365959,4.0277,2482.9,2482.4,0.0362528]
[1730856366127,4.02773,2482.8,2482.4,0.0362528]
[1730856366323,4.82713,2482.8,2482.4,0.0362528]
[1730856366528,4.02803,2482.6,2482.4,0.0362528]
[1730856366847,1.64079793,2482.8,2482.4,0.0362528]
[1730856367025,4.05247708,2483.4,2482.4,0.0362528]
[1730856367026,1.6835342,2483.6,2482.6,4.02803]
[1730856367207,4.02636,2483.7,2483.1,4.02715]
[1730856367406,4.02636,2483.7,2482.8,4.02758]
[1730856367407,1.6835342,2484.4,2483.9,4.02592]
[1730856367708,1.6835342,2484.4,2483.8,4.02607]
[1730856367709,5.7081042,2484.8,2484.3,4.02518]
[1730856368033,4.82365,2485.0,2484.2,4.02532]
[1730856368034,1.6835342,2485.0,2484.6,4.02467]
[1730856368239,4.8229,2485.4,2484.3,4.02527]
[1730856368469,4.8229,2485.4,2484.9,4.02427]
[1730856368470,2.06268607,2485.4,2484.9,4.02427]
[1730856368644,4.82296,2485.4,2484.8,8.04869]
[1730856368843,4.82296,2485.4,2484.8,4.02433]
[1730856369336,0.7994,2485.4,2484.3,4.02515]
[1730856369541,4.02409,2485.1,2484.3,4.02515]
[1730856369856,0.7994,2485.4,2484.3,4.02514]
[1730856370041,4.02393,2485.2,2484.5,4.02483]
[1730856370244,0.402393,2485.1,2484.5,4.02483]
[1730856370554,4.426433,2485.1,2484.3,4.02514]
[1730856370742,4.426433,2485.1,2484.1,4.02553]
[1730856370743,4.02415,2485.0,2484.1,4.02553]
[1730856370940,4.02521,2484.4,2483.7,4.02621]
[1730856371177,7.0343,2484.9,2483.1,4.83196]
[1730856371178,4.02579,2484.0,2483.1,4.83196]
[1730856371379,4.0262,2483.8,2483.1,4.83196]
[1730856372078,0.402579,2483.9,2483.2,4.02704]
[1730856372269,4.428509,2483.9,2483.2,4.02704]
[1730856372998,0.7994,2484.3,2483.8,4.02608]
[1730856373151,4.02489,2484.6,2483.9,4.02577]
[1730856373350,4.79579,2484.6,2483.9,4.02577]
[1730856373548,4.79579,2484.6,2483.8,4.02608]
[1730856373549,0.7709,2484.6,2484.2,4.02542]
[1730856374292,0.7709,2484.6,2484.1,4.02559]
[1730856374448,4.0242,2485.0,2484.3,4.02527]
[1730856374449,0.7709,2484.9,2484.3,4.02527]
[1730856374650,0.47951,2484.8,2484.3,4.02527]
[1730856374852,4.0248,2484.6,2484.0,4.02576]
[1730856375271,0.47951,2484.8,2483.9,4.02585]
[1730856375454,0.47951,2484.8,2483.7,4.02614]
[1730856375455,4.02528,2484.3,2483.7,4.02614]
[1730856375789,4.0345,2484.8,2483.5,4.83946]
[1730856375790,4.02571,2484.1,2483.5,4.02646]
[1730856376012,4.79635,2484.2,2483.4,4.02669]
[1730856376013,4.02577,2484.0,2483.4,4.02669]
[1730856376622,4.02577,2484.0,2483.4,4.02664]
[1730856377116,4.0256,2484.1,2483.1,4.02711]
[1730856377315,4.79759,2483.5,2482.9,4.02742]
[1730856377824,0.7709,2483.5,2482.7,4.02773]
[1730856378114,4.7975,2483.5,2482.4,0.0362528]
[1730856378329,0.7709,2482.8,2482.4,0.0362528]
[1730856378546,4.02803,2482.6,2482.4,0.0362528]
[1730856378752,0.7709,2482.8,2482.4,0.0362528]
[1730856378753,4.02819,2482.5,2482.4,0.0362528]
[1730856379034,4.507943,2482.6,2482.4,0.0362528]
[1730856379198,4.02805,2482.6,2482.4,0.0362528]
[1730856379607,8.05617,2482.6,2482.4,0.0362528]
[1730856379831,4.02805,2482.6,2482.4,0.0362528]
[1730856380145,4.7987,2482.8,2482.4,0.0362528]
[1730856380356,3.83969134,2483.2,2482.4,0.0362528]
[1730856380357,1.61059134,2483.2,2482.4,0.0362528]
[1730856380497,4.02751,2483.0,2482.4,4.0645928]
[1730856380839,4.02724,2483.1,2482.5,4.84112]
[1730856381139,4.02724,2483.1,2482.4,0.0362528]
[1730856381140,4.02787,2482.7,2482.4,0.0362528]
[1730856381448,4.02795,2482.7,2482.4,0.0362528]
[1730856381598,4.02819,2482.5,2482.4,0.0362528]
[1730856381800,7.02819,2482.5,2482.4,0.0362528]
[1730856382130,7.57819,2482.5,2482.4,0.0362528]
[1730856382900,7.57819,2482.5,2481.1,0.8780817]
[1730856382901,0.7709,2482.4,2481.2,4.03019]
[1730856383099,4.02852,2482.3,2481.2,4.03019]
[1730856383341,4.02917,2481.9,2481.2,8.0604]
[1730856383559,4.02933,2481.8,2481.2,8.0604]
[1730856383926,0.479942,2482.2,2481.1,0.8780817]
[1730856383927,4.02951,2481.7,2481.1,0.8780817]
[1730856384129,4.02991,2481.5,2481.1,0.0650817]
[1730856384337,4.80049,2481.7,2481.1,0.0650817]
[1730856384525,4.80048,2481.7,2481.2,4.0303]
[1730856384969,0.7709,2481.7,2481.2,4.03021]
[1730856385152,4.8004,2481.7,2481.2,4.03021]
[1730856385358,4.8004,2481.7,2481.1,0.0650817]
[1730856385668,4.02976,2481.6,2481.1,0.0650817]
[1730856386867,4.02985,2481.5,2481.1,0.0650817]
[1730856387577,4.80051,2481.7,2481.1,0.0650817]
[1730856387873,4.02965,2481.6,2481.1,0.0650817]
[1730856388035,4.02986,2481.5,2481.1,0.0650817]
[1730856388433,4.02965,2481.6,2481.1,0.0650817]
[1730856388932,8.0594,2481.6,2481.1,0.0650817]
[1730856389244,8.05941,2481.6,2481.1,0.0650817]
[1730856389567,4.81492,2482.0,2481.2,4.03016]
[1730856389774,8.84406,2482.0,2481.3,4.03005]
[1730856389944,4.81492,2482.0,2481.4,4.02998]
[1730856390145,4.81492,2482.0,2481.4,8.05988]
[1730856390455,4.02934,2481.8,2481.3,0.0451128]
[1730856390999,4.02966,2481.6,2481.3,0.0451128]
[1730856391784,4.02944,2481.8,2481.3,0.0451128]
[1730856391954,4.81491,2482.0,2481.3,0.0451128]
[1730856392158,0.805577,2482.6,2481.3,0.0451128]
[1730856392496,4.02852,2482.3,2481.8,4.02931]
[1730856392701,4.02843,2482.4,2481.8,4.02931]
[1730856393355,4.02843,2482.4,2481.6,4.02952]
[1730856393585,4.02861,2482.3,2481.7,4.02947]
[1730856393891,3.0,2482.6,2481.9,4.02907]
[1730856394113,3.7858,2482.8,2482.2,4.02865]
[1730856394114,4.81359,2482.8,2482.2,4.02865]
[1730856394404,0.7858,2482.8,2482.4,4.02835]
[1730856394595,4.81313,2483.1,2482.5,4.0281]
[1730856394814,0.7858,2483.1,2482.0,0.7909]
[1730856395174,0.7858,2483.1,2482.6,4.02793]
[1730856395620,0.7858,2483.1,2482.7,4.02787]
[1730856395973,4.81264,2483.4,2482.6,4.02793]
[1730856396173,0.7858,2483.4,2482.9,4.02754]
[1730856396414,0.7858,2483.4,2482.7,4.81875]
[1730856396415,4.027,2483.3,2482.7,4.81875]
[1730856396600,4.02727,2483.1,2482.6,4.02788]
[1730856396777,4.02739,2483.0,2482.4,8.84741]
[1730856397109,0.7858,2483.4,2482.2,4.02857]
[1730856397332,0.7858,2483.4,2482.3,4.02841]
[1730856397333,4.02689,2483.3,2482.3,4.02841]
[1730856397489,4.02773,2482.8,2482.3,4.02841]
[1730856398890,4.0277,2482.9,2482.3,4.02841]
[1730856399424,8.0554,2482.9,2482.3,4.02841]
[1730856399598,0.481269,2483.2,2482.2,4.02868]
[1730856399599,4.02734,2483.1,2482.2,4.02868]
[1730856399802,4.027,2483.3,2482.8,4.02769]
[1730856400002,0.7858,2483.4,2482.8,4.02769]
[1730856400003,4.81253,2483.4,2482.8,4.02765]
[1730856400725,4.02696,2483.3,2482.8,4.02765]
[1730856400931,4.0271,2483.2,2482.6,4.02791]
[1730856401125,4.02717,2483.2,2482.1,0.7909]
[1730856401325,4.02717,2483.2,2482.6,4.02793]
[1730856401526,4.910899,2483.3,2482.6,4.02793]
[1730856401740,8.937889,2483.3,2482.7,4.0278]
[1730856401906,4.0271,2483.2,2482.7,4.0278]
[1730856402099,4.0271,2483.2,2482.6,4.02793]
[1730856402504,4.02733,2483.1,2482.5,4.02819]
[1730856402942,4.02733,2483.1,2482.3,4.02839]
[1730856403249,8.05468,2483.1,2482.5,4.02814]
[1730856403402,4.02778,2482.8,2482.2,4.02858]
[1730856403606,4.02778,2482.8,2482.2,8.05716]
[1730856404441,4.02778,2482.8,2482.2,4.02858]
[1730856404743,4.028,2482.7,2482.1,4.81972]
[1730856405041,4.02805,2482.6,2482.1,0.7909]
[1730856405249,4.02778,2482.8,2482.1,0.7909]
[1730856405250,4.02789,2482.7,2482.1,4.81966]
[1730856405560,4.02762,2482.9,2482.3,4.02844]
[1730856405844,4.833131,2482.9,2482.3,4.02844]
[1730856406068,4.02774,2482.8,2482.3,4.02844]
[1730856406204,4.833131,2482.9,2482.3,4.02844]